bitfinex-derivatives/quotes_BTCF0:USTF0_20250902
["timestamp","ask_amount","ask_price","bid_price","bid_amount"]
[1756845889889,0.001,111360.0,111350.0,1.04215465]
[1756845890195,0.001,111360.0,111350.0,1.89847465]
[1756845891384,0.41004584,111370.0,111350.0,1.89847465]
[1756845891695,0.45665584,111370.0,111360.0,0.0719]
[1756845893188,0.05662545,111370.0,111360.0,0.07638]
[1756845893388,0.09070545,111370.0,111360.0,0.42638]
[1756845894397,0.09170545,111370.0,111360.0,0.42638]
[1756845894595,0.09170545,111370.0,111360.0,1.25258]
[1756845895490,0.09170545,111370.0,111360.0,1.26258]
[1756845896601,0.09170545,111370.0,111360.0,0.93258]
[1756845897694,0.09294057,111370.0,111360.0,0.93258]
[1756845898795,0.09294057,111370.0,111360.0,1.28258]
[1756845900599,0.45889096,111370.0,111360.0,0.07638]
[1756845901101,0.45889096,111370.0,111360.0,0.93238]
[1756845901988,0.45889096,111370.0,111360.0,0.93234]
[1756845906198,0.05886057,111370.0,111360.0,0.93234]
[1756845906399,0.01225057,111370.0,111360.0,1.64829039]
[1756845906602,0.01225057,111370.0,111360.0,1.60829039]
[1756845906803,0.05886057,111370.0,111360.0,0.07638]
[1756845907002,0.09294057,111370.0,111360.0,0.07638]
[1756845907303,0.45889096,111370.0,111360.0,0.93218]
[1756845907905,0.42481096,111370.0,111360.0,0.93218]
[1756845908106,0.45889096,111370.0,111360.0,0.93218]
[1756845909008,0.45889096,111370.0,111360.0,0.07638]
[1756845909206,0.09294057,111370.0,111360.0,0.93214]
[1756845909503,0.42481096,111370.0,111360.0,0.93214]
[1756845910195,0.45891096,111370.0,111360.0,0.93214]
[1756845911603,0.05886057,111370.0,111360.0,0.93214]
[1756845911797,0.42481096,111370.0,111360.0,1.19214]
[1756845911994,0.05886057,111370.0,111360.0,1.19214]
[1756845912207,0.42481096,111370.0,111360.0,1.30214]
[1756845912608,0.42481096,111370.0,111360.0,0.95214]
[1756845912905,0.45891096,111370.0,111360.0,0.07638]
[1756845913098,0.45891096,111370.0,111360.0,0.93202]
[1756845914606,0.45891096,111370.0,111360.0,0.93198]
[1756845915608,0.45891096,111370.0,111360.0,0.07638]
[1756845915909,0.45891096,111370.0,111360.0,0.9319]
[1756845920615,0.03490057,111370.0,111360.0,1.2519]
[1756845920908,0.03490057,111370.0,111360.0,1.31785039]
[1756845921109,0.03490057,111370.0,111360.0,1.2119]
[1756845921306,0.01225057,111370.0,111360.0,1.2119]
[1756845921509,0.01225057,111370.0,111360.0,1.57785039]
[1756845921806,0.01225057,111370.0,111360.0,1.2119]
[1756845922007,0.01225057,111370.0,111360.0,1.31785039]
[1756845922210,0.01225057,111370.0,111360.0,1.62785039]
[1756845922397,0.03648057,111370.0,111360.0,1.31785039]
[1756845922601,0.09470057,111370.0,111360.0,0.9319]
[1756845922802,0.06060057,111370.0,111360.0,0.9319]
[1756845923110,0.09470057,111370.0,111360.0,0.9319]
[1756845923312,0.09470057,111370.0,111360.0,0.07638]
[1756845923612,0.09470057,111370.0,111360.0,0.93166]
[1756845923913,0.46065096,111370.0,111360.0,0.93162]
[1756845924607,0.46065096,111370.0,111360.0,0.07638]
[1756845924807,0.46065096,111370.0,111360.0,0.93158]
[1756845926308,0.46065096,111370.0,111360.0,0.07638]
[1756845926509,0.46065096,111370.0,111360.0,0.93158]
[1756845928009,0.01225057,111370.0,111360.0,0.93158]
[1756845928314,0.04635057,111370.0,111360.0,1.31158]
[1756845929916,0.01225057,111370.0,111360.0,1.31158]
[1756845931718,0.04635057,111370.0,111360.0,1.31158]
[1756845932016,0.09470057,111370.0,111360.0,0.95158]
[1756845932212,0.09470057,111370.0,111360.0,0.07638]
[1756845932417,0.46065096,111370.0,111360.0,0.9313]
[1756845937314,0.46065096,111370.0,111360.0,0.9311]
[1756845937506,0.46065096,111370.0,111360.0,0.07638]
[1756845937712,0.46065096,111370.0,111360.0,0.93106]
[1756845939427,0.46065096,111370.0,111360.0,0.07638]
[1756845939625,0.46065096,111370.0,111360.0,0.93106]
[1756845940417,0.46065096,111370.0,111360.0,0.07638]
[1756845940619,1.09894957,111370.0,111360.0,0.00448]
[1756845940817,1.09894957,111370.0,111360.0,0.859]
[1756845940818,1.21894957,111370.0,111360.0,0.859]
[1756845941119,0.85299918,111370.0,111360.0,0.859]
[1756845941514,0.73299918,111370.0,111360.0,0.859]
[1756845941715,1.08299918,111370.0,111360.0,0.859]
[1756845942625,0.71704879,111370.0,111360.0,0.90649]
[1756845942828,0.86299918,111370.0,111360.0,0.88167]
[1756845943324,0.86299918,111370.0,111360.0,0.90649]
[1756845943526,0.66704879,111370.0,111360.0,0.859]
[1756845943726,0.66704879,111370.0,111360.0,0.88167]
[1756845943930,1.03299918,111370.0,111360.0,0.90649]
[1756845944123,1.03299918,111370.0,111360.0,0.93109]
[1756845945819,0.76065096,111370.0,111360.0,0.93109]
[1756845948432,0.39470057,111370.0,111360.0,0.93109]
[1756845948632,0.76065096,111370.0,111360.0,0.93109]
[1756845951429,1.12676117,111370.0,111360.0,0.93081]
[1756845953432,0.76073087,111370.0,111360.0,0.93081]
[1756845955129,0.04935,111340.0,111330.0,1.81972799]
[1756845955337,0.08513,111340.0,111330.0,0.08008799]
[1756845955537,0.08513,111330.0,111320.0,0.97513304]
[1756845955830,0.81842572,111330.0,111320.0,0.97513304]
[1756845956029,0.84086801,111330.0,111320.0,0.94605304]
[1756845956227,0.81842572,111330.0,111320.0,0.04291304]
[1756845956425,0.81842572,111330.0,111320.0,0.80772304]
[1756845956632,0.81842572,111330.0,111320.0,0.91068304]
[1756845956835,0.8406791,111330.0,111320.0,0.91068304]
[1756845957024,0.8406791,111330.0,111320.0,0.89044]
[1756845957230,1.2037094,111330.0,111320.0,0.89044]
[1756845957530,1.47845602,111330.0,111320.0,0.89044]
[1756845957835,1.47845602,111330.0,111310.0,0.00449]
[1756845958034,0.08513,111310.0,111300.0,0.00328]
[1756845958232,0.8171906,111310.0,111300.0,0.01714084]
[1756845958739,0.81842572,111310.0,111300.0,0.90854084]
[1756845958936,0.89080006,111310.0,111300.0,0.01386084]
[1756845959637,0.15873946,111310.0,111300.0,0.01386084]
[1756845960034,0.89080006,111310.0,111300.0,0.01386084]
[1756845960637,0.15873946,111310.0,111300.0,0.01816084]
[1756845960831,0.53731368,111310.0,111300.0,0.01816084]
[1756845961046,0.17128338,111310.0,111300.0,0.91118084]
[1756845961231,0.54031368,111310.0,111300.0,0.91548084]
[1756845962338,0.54076282,111310.0,111300.0,0.91548084]
[1756845962543,0.54076282,111310.0,111300.0,1.28151114]
[1756845962838,0.54076282,111310.0,111300.0,0.01816084]
[1756845963144,0.54076282,111310.0,111300.0,0.91960084]
[1756845963537,0.17473252,111310.0,111300.0,0.91960084]
[1756845963836,0.54076282,111310.0,111300.0,0.91960084]
[1756845965432,0.11425252,111310.0,111300.0,1.5217703]
[1756845965635,0.0800586,111310.0,111300.0,1.5217703]
[1756845966637,0.0800586,111310.0,111300.0,1.8878006]
[1756845966840,0.0800586,111310.0,111300.0,2.2478006]
[1756845967146,0.0780586,111310.0,111300.0,2.2478006]
[1756845967345,0.0770586,111310.0,111300.0,1.51574]
[1756845967537,0.0770586,111310.0,111300.0,2.2478006]
[1756845967843,0.0760586,111310.0,111300.0,2.2478006]
[1756845968149,0.0770586,111310.0,111300.0,2.2478006]
[1756845968645,0.0750586,111310.0,111300.0,2.2478006]
[1756845968844,0.0760586,111310.0,111300.0,2.26772018]
[1756845969543,0.0760586,111310.0,111300.0,2.35755958]
[1756845969544,0.00368426,111310.0,111300.0,2.35755958]
[1756845969750,0.4629003,111350.0,111340.0,0.0043]
[1756845969943,0.792455,111350.0,111340.0,0.90546]
[1756845970248,0.4264247,111350.0,111340.0,0.90602]
[1756845970436,0.792455,111350.0,111340.0,1.2720503]
[1756845970947,0.798455,111350.0,111340.0,1.2730503]
[1756845971445,0.802455,111350.0,111340.0,1.2730503]
[1756845971641,0.50844262,111350.0,111340.0,1.2730503]
[1756845971946,0.45959262,111350.0,111340.0,1.2730503]
[1756845972136,0.11489262,111350.0,111340.0,1.2730503]
[1756845972643,0.13952262,111350.0,111340.0,1.2736103]
[1756845973243,0.11489262,111350.0,111340.0,1.2736103]
[1756845973845,0.13952262,111350.0,111340.0,1.2735703]
[1756845974347,0.13952262,111350.0,111340.0,0.3713303]
[1756845974539,0.17419262,111350.0,111340.0,1.2734903]
[1756845974846,0.50555292,111350.0,111340.0,1.2734903]
[1756845975050,0.54022292,111350.0,111340.0,1.2732503]
[1756845976343,0.17419262,111350.0,111340.0,1.2732503]
[1756845976544,0.54022292,111350.0,111340.0,1.2732503]
[1756845976743,0.08201792,111350.0,111340.0,1.65911429]
[1756845976955,0.08201792,111350.0,111340.0,2.26911429]
[1756845977246,0.08201792,111350.0,111340.0,1.36719429]
[1756845977646,0.10533792,111350.0,111340.0,1.49645369]
[1756845977842,0.10533792,111350.0,111340.0,1.32719429]
[1756845978044,0.10533792,111350.0,111340.0,2.22847429]
[1756845978851,0.10533792,111350.0,111340.0,1.32719429]
[1756845979149,0.10533792,111350.0,111340.0,1.90188399]
[1756845979551,0.10533792,111350.0,111340.0,2.26791429]
[1756845981751,0.08201792,111350.0,111340.0,2.22791429]
[1756845982254,0.08201792,111350.0,111340.0,1.90791429]
[1756845982552,0.08201792,111350.0,111340.0,2.24791429]
[1756845982852,0.08201792,111350.0,111340.0,2.27791429]
[1756845983055,0.11668792,111350.0,111340.0,2.27719429]
[1756845983949,0.11668792,111350.0,111340.0,1.54513369]
[1756845984153,0.11668792,111350.0,111340.0,1.90719429]
[1756845984154,0.49632822,111350.0,111340.0,1.90719429]
[1756845984453,0.11668792,111350.0,111340.0,1.90719429]
[1756845985846,0.08201792,111350.0,111340.0,2.28719429]
[1756845988961,0.08201792,111350.0,111340.0,1.38719429]
[1756845989256,0.08201792,111350.0,111340.0,2.28423429]
[1756845990155,0.08201792,111350.0,111340.0,1.00719429]
[1756845990347,0.08201792,111350.0,111340.0,2.25423429]
[1756845990548,0.08201792,111350.0,111340.0,2.22423429]
[1756845990955,0.11668792,111350.0,111340.0,0.59513369]
[1756845991253,0.12996792,111350.0,111340.0,2.22311429]
[1756845991553,0.08201792,111350.0,111340.0,2.22311429]
[1756845991948,0.10841278,111350.0,111340.0,2.22311429]
[1756845992145,0.08201792,111350.0,111340.0,2.22311429]
[1756845992346,0.10842403,111350.0,111340.0,2.22311429]
[1756845992540,0.10842403,111350.0,111340.0,1.32719429]
[1756845992746,0.15637403,111350.0,111340.0,0.62513369]
[1756845992946,0.15637403,111350.0,111340.0,2.25287429]
[1756845993153,0.19104403,111350.0,111340.0,2.25287429]
[1756845994055,0.19104403,111350.0,111340.0,1.35719429]
[1756845994356,0.19104403,111350.0,111340.0,2.25295429]
[1756845994547,0.16463792,111350.0,111340.0,2.25295429]
[1756845995146,0.12996792,111350.0,111340.0,2.27199429]
[1756845995347,0.12996792,111350.0,111340.0,1.00719429]
[1756845995547,0.12996792,111350.0,111340.0,2.23199429]
[1756845995746,0.12996792,111350.0,111340.0,2.22199429]
[1756845995947,0.16463792,111350.0,111340.0,2.27191429]
[1756845996350,0.12996792,111350.0,111340.0,2.27191429]
[1756845996550,0.15643446,111350.0,111340.0,2.27191429]
[1756845997257,0.15643446,111350.0,111340.0,1.90191429]
[1756845997451,0.15643446,111350.0,111340.0,2.24191429]
[1756845999257,0.19303446,111350.0,111340.0,2.24191429]
[1756845999659,0.55906476,111350.0,111340.0,2.24191429]
[1756845999952,0.55906476,111350.0,111340.0,0.27513369]
[1756846000260,0.57261476,111350.0,111340.0,0.91889369]
[1756846000756,0.20658446,111350.0,111340.0,0.91889369]
[1756846000948,0.57261476,111350.0,111340.0,0.91889369]
[1756846001148,0.57261476,111350.0,111340.0,1.28492399]
[1756846001345,0.57261476,111350.0,111340.0,0.91889369]
[1756846001856,0.57261476,111350.0,111340.0,0.92338369]
[1756846002159,0.20658446,111350.0,111340.0,1.28941399]
[1756846002359,0.57261476,111350.0,111340.0,1.28941399]
[1756846004160,0.57268211,111350.0,111340.0,1.28941399]
[1756846007061,0.57268211,111350.0,111340.0,1.54941399]
[1756846007457,0.57268211,111350.0,111340.0,1.63941399]
[1756846007653,0.57268211,111350.0,111340.0,1.30941399]
[1756846007961,0.57268211,111350.0,111340.0,1.28941399]
[1756846008564,0.15650181,111350.0,111340.0,1.28941399]
[1756846008763,0.52253211,111350.0,111340.0,1.30941399]
[1756846008963,0.52253211,111350.0,111340.0,1.62941399]
[1756846009268,0.52253211,111350.0,111340.0,1.57941399]
[1756846009459,0.55913211,111350.0,111340.0,1.57941399]
[1756846009656,0.19310181,111350.0,111340.0,1.61941399]
[1756846009860,0.15650181,111350.0,111340.0,1.61941399]
[1756846010057,0.10855181,111350.0,111340.0,1.95544429]
[1756846010456,0.10855181,111350.0,111340.0,2.02544429]
[1756846013366,0.08201792,111350.0,111340.0,2.02544429]
[1756846013567,0.10689693,111350.0,111340.0,1.65939979]
[1756846015272,0.16744693,111350.0,111340.0,0.02962369]
[1756846015461,0.19062693,111350.0,111340.0,1.60483979]
[1756846015774,0.19062693,111350.0,111340.0,1.28483979]
[1756846016067,0.19062693,111350.0,111340.0,1.64483979]
[1756846018271,0.16574792,111350.0,111340.0,1.64483979]
[1756846020777,0.10596792,111350.0,111340.0,1.64483979]
[1756846021074,0.08201792,111350.0,111340.0,1.64483979]
[1756846023483,0.08201792,111350.0,111340.0,1.27882369]
[1756846023676,0.08201792,111350.0,111340.0,1.64483979]
[1756846024073,0.16574792,111350.0,111340.0,0.39563979]
[1756846024278,0.16574792,111350.0,111340.0,1.61187979]
[1756846024584,0.16574792,111350.0,111340.0,1.61115979]
[1756846024885,0.08201792,111350.0,111340.0,1.61115979]
[1756846025284,0.08201792,111350.0,111340.0,0.91514369]
[1756846025485,0.08201792,111350.0,111340.0,1.66115979]
[1756846025787,0.16574792,111350.0,111340.0,0.02962369]
[1756846025985,0.16574792,111350.0,111340.0,1.66187979]
[1756846026285,0.16574792,111350.0,111340.0,1.63187979]
[1756846027088,0.19062732,111350.0,111340.0,1.63187979]
[1756846028187,0.18662732,111350.0,111340.0,1.65187979]
[1756846028384,0.18762732,111350.0,111340.0,0.91586369]
[1756846028581,0.18462732,111350.0,111340.0,1.66087979]
[1756846028785,0.56547342,111350.0,111340.0,0.91418369]
[1756846029189,0.56547342,111350.0,111340.0,0.02862369]
[1756846029389,0.56547342,111350.0,111340.0,1.26386369]
[1756846029688,0.19945732,111350.0,111340.0,1.26386369]
[1756846030087,0.19945732,111350.0,111340.0,1.26438369]
[1756846031790,0.19945732,111350.0,111340.0,1.26378369]
[1756846032591,0.19945732,111350.0,111340.0,0.37862369]
[1756846032791,0.56547342,111350.0,111340.0,0.89351]
[1756846033095,0.81547342,111350.0,111340.0,0.00777]
[1756846033385,0.81547342,111350.0,111340.0,0.00449]
[1756846033593,0.81547342,111350.0,111340.0,0.88957]
[1756846037994,0.44945732,111350.0,111340.0,0.88957]
[1756846038194,0.19945732,111350.0,111340.0,0.89387]
[1756846038385,0.10089732,111350.0,111340.0,1.5998861]
[1756846038694,0.07601792,111350.0,111340.0,1.5998861]
[1756846039581,0.07301792,111350.0,111340.0,1.5998861]
[1756846039794,0.07501792,111350.0,111340.0,1.8498861]
[1756846039988,0.07401792,111350.0,111340.0,1.8498861]
[1756846045498,0.07401792,111350.0,111340.0,1.5998861]
[1756846046500,0.07401792,111350.0,111340.0,1.5989261]
[1756846046703,0.07301792,111350.0,111340.0,1.5999261]
[1756846047805,0.07301792,111350.0,111340.0,1.4998861]
[1756846048805,0.07301792,111350.0,111340.0,1.4988861]
[1756846049103,0.002,111350.0,111340.0,1.5886935]
[1756846049802,0.08144,111380.0,111370.0,0.00328]
[1756846049997,0.36622861,111380.0,111370.0,1.2493]
[1756846050992,0.18622861,111380.0,111370.0,1.2493]
[1756846051197,0.18622861,111380.0,111370.0,1.25378]
[1756846051598,0.25790396,111380.0,111370.0,1.25378]
[1756846052001,0.25990396,111380.0,111370.0,1.25378]
[1756846052309,0.23511535,111380.0,111370.0,1.25326]
[1756846052501,0.24472074,111380.0,111370.0,0.89326]
[1756846053006,0.24472074,111380.0,111370.0,1.25326]
[1756846053805,0.61073684,111380.0,111370.0,0.00878]
[1756846054004,0.61073684,111380.0,111370.0,0.89282]
[1756846054199,0.86073684,111380.0,111370.0,0.88992]
[1756846054402,0.88550491,111380.0,111370.0,0.88828]
[1756846054599,0.88550491,111380.0,111370.0,0.88844]
[1756846054799,0.88550491,111380.0,111370.0,0.00448]
[1756846055001,0.88550491,111380.0,111370.0,0.81628]
[1756846055508,0.51948881,111380.0,111370.0,0.82058]
[1756846055699,0.88550491,111380.0,111370.0,0.82058]
[1756846056204,0.88550491,111380.0,111370.0,0.00878]
[1756846056401,1.18550491,111380.0,111370.0,0.89314]
[1756846058400,1.18550491,111380.0,111370.0,0.00878]
[1756846058708,1.18550491,111380.0,111370.0,0.89242]
[1756846059010,1.18550491,111380.0,111370.0,0.00878]
[1756846059208,1.18550491,111380.0,111370.0,0.67384]
[1756846059399,1.18550491,111380.0,111370.0,0.6722]
[1756846059608,1.18550491,111380.0,111370.0,0.00448]
[1756846059801,1.18550491,111380.0,111370.0,0.88812]
[1756846060008,1.18550491,111380.0,111370.0,0.00448]
[1756846062307,1.18550491,111380.0,111360.0,0.8834]
[1756846062506,0.4520561,111370.0,111360.0,0.88308]
[1756846062704,0.84284027,111370.0,111350.0,0.0196773]
[1756846062908,0.4520561,111360.0,111350.0,0.9027173]
[1756846063713,0.47681997,111360.0,111350.0,0.9027173]
[1756846064614,0.47681997,111360.0,111350.0,0.9203173]
[1756846064806,0.47681997,111360.0,111350.0,0.9268173]
[1756846066002,0.47681997,111360.0,111350.0,0.9268573]
[1756846066407,0.47681997,111360.0,111350.0,0.9288573]
[1756846073434,0.84299549,111360.0,111350.0,0.9288573]
[1756846074133,0.02458,111360.0,111350.0,1.29495311]
[1756846074434,0.0367,111370.0,111350.0,1.63945311]
[1756846074641,0.36609581,111360.0,111350.0,1.63945311]
[1756846074827,0.02474333,111360.0,111350.0,1.63945311]
[1756846075026,0.39083914,111360.0,111350.0,1.64495311]
[1756846075440,0.39083914,111360.0,111350.0,1.2788573]
[1756846075643,0.47687914,111360.0,111350.0,0.0458173]
[1756846075841,0.47687914,111360.0,111350.0,1.29207311]
[1756846077439,0.07408333,111360.0,111350.0,1.29207311]
[1756846077644,0.11078333,111360.0,111350.0,1.29207311]
[1756846077835,0.47687914,111360.0,111350.0,1.29207311]
[1756846078337,0.02474333,111360.0,111350.0,1.29207311]
[1756846078544,0.39083914,111360.0,111350.0,1.29207311]
[1756846079045,0.40279581,111370.0,111350.0,1.88207311]
[1756846079239,0.40279581,111370.0,111360.0,0.38919581]
[1756846079240,0.47687675,111370.0,111360.0,0.38919581]
[1756846079430,0.07408094,111370.0,111360.0,0.38919581]
[1756846079635,0.04932094,111370.0,111360.0,0.70919581]
[1756846080245,0.04932094,111370.0,111360.0,1.32529162]
[1756846080446,0.48407655,111380.0,111360.0,0.95369581]
[1756846080743,0.90815678,111380.0,111370.0,0.90306]
[1756846081840,1.27425259,111380.0,111370.0,0.90306]
[1756846082545,1.27625259,111380.0,111370.0,0.90306]
[1756846086148,1.27625259,111380.0,111370.0,0.0231]
[1756846086349,1.27625259,111380.0,111370.0,0.9029]
[1756846086850,1.27625259,111380.0,111370.0,0.0231]
[1756846087050,1.27625259,111380.0,111370.0,0.90286]
[1756846087250,1.27625259,111380.0,111370.0,0.0231]
[1756846087448,1.27625259,111380.0,111370.0,0.9025]
[1756846090643,0.92625259,111380.0,111370.0,0.9025]
[1756846090845,0.90151236,111380.0,111370.0,1.2825]
[1756846091047,0.19405619,111380.0,111370.0,1.8782568]
[1756846091348,0.16707074,111380.0,111370.0,1.8768968]
[1756846091542,0.53316655,111380.0,111370.0,1.8768968]
[1756846094159,0.53316655,111380.0,111370.0,0.63276099]
[1756846094349,0.53316655,111380.0,111370.0,1.51092099]
[1756846094549,0.53316655,111380.0,111370.0,1.8770168]
[1756846096556,0.53316655,111380.0,111370.0,0.9988568]
[1756846096965,0.53316655,111380.0,111370.0,1.8761768]
[1756846098863,0.13262074,111380.0,111370.0,1.8761768]
[1756846099063,0.53316655,111380.0,111370.0,1.8761768]
[1756846100362,0.53316655,111380.0,111370.0,1.8757768]
[1756846100960,0.53316655,111380.0,111370.0,0.29276099]
[1756846101166,0.53316655,111380.0,111370.0,1.8656968]
[1756846101565,0.53316655,111380.0,111370.0,1.8660568]
[1756846101758,0.89926236,111380.0,111370.0,1.8660568]
[1756846103166,0.89926236,111380.0,111370.0,0.29276099]
[1756846103356,0.53316655,111380.0,111370.0,0.62276099]
[1756846103670,0.89926236,111380.0,111370.0,1.49936099]
[1756846105367,0.89926236,111380.0,111370.0,1.8654568]
[1756846105568,0.89926236,111380.0,111370.0,0.29276099]
[1756846105867,0.89926236,111380.0,111370.0,0.04276099]
[1756846106059,0.89926236,111380.0,111370.0,0.91964099]
[1756846107368,0.92395356,111380.0,111370.0,0.91964099]
[1756846108867,0.19176194,111380.0,111370.0,0.91964099]
[1756846109074,0.92395356,111380.0,111370.0,0.91964099]
[1756846112173,0.92395356,111380.0,111370.0,1.22964099]
[1756846113067,0.92395356,111380.0,111370.0,0.91964099]
[1756846113269,0.92395356,111380.0,111370.0,1.26964099]
[1756846113574,0.92395356,111380.0,111370.0,0.91964099]
[1756846116778,0.55785775,111380.0,111370.0,1.6157368]
[1756846116979,0.49864775,111380.0,111370.0,1.6157368]
[1756846117772,0.1079942,111380.0,111370.0,1.6157368]
[1756846117978,0.08328074,111380.0,111370.0,1.8657368]
[1756846120374,0.08328074,111380.0,111370.0,1.49964099]
[1756846120587,0.08328074,111380.0,111370.0,1.8657368]
[1756846122384,0.13032074,111380.0,111370.0,0.62276099]
[1756846122683,0.49641655,111380.0,111370.0,1.9136168]
[1756846122884,0.53196655,111380.0,111370.0,1.9136168]
[1756846123284,0.16587074,111380.0,111370.0,1.9136168]
[1756846123484,0.53196655,111380.0,111370.0,1.9136168]
[1756846124588,0.55663987,111380.0,111370.0,1.9136168]
[1756846124788,0.55663987,111380.0,111370.0,0.29276099]
[1756846124991,0.55663987,111380.0,111370.0,1.9123368]
[1756846125481,0.53196655,111380.0,111370.0,1.9123368]
[1756846126482,0.16587074,111380.0,111370.0,1.51620099]
[1756846126685,0.53196655,111380.0,111370.0,1.8822968]
[1756846126887,0.55663817,111380.0,111370.0,1.8822968]
[1756846127088,0.19054236,111380.0,111370.0,1.8822968]
[1756846127287,0.55663817,111380.0,111370.0,1.8822968]
[1756846127488,1.17273398,111380.0,111370.0,0.04276099]
[1756846127687,1.17273398,111380.0,111370.0,0.91552099]
[1756846127993,1.17273398,111380.0,111370.0,0.91540099]
[1756846128785,1.17273398,111380.0,111370.0,0.91508099]
[1756846128988,0.19054236,111380.0,111370.0,1.5611768]
[1756846129185,0.49641655,111380.0,111370.0,1.5611768]
[1756846129985,0.53196655,111380.0,111370.0,1.5611768]
[1756846130595,0.53196655,111380.0,111370.0,1.19508099]
[1756846130891,0.53196655,111380.0,111370.0,1.5611768]
[1756846131295,0.53196655,111380.0,111370.0,1.5900568]
[1756846133693,0.16587074,111380.0,111370.0,1.5900568]
[1756846133994,0.53196655,111380.0,111370.0,1.5900568]
[1756846134589,0.53196655,111380.0,111370.0,1.22396099]
[1756846134794,0.53196655,111380.0,111370.0,1.5900568]
[1756846135491,0.16587074,111380.0,111370.0,1.22396099]
[1756846136192,0.16587074,111380.0,111370.0,1.22156099]
[1756846136393,0.53176157,111380.0,111370.0,1.22156099]
[1756846137600,0.16587074,111380.0,111370.0,1.22156099]
[1756846146905,0.07367535,111380.0,111370.0,1.22156099]
[1756846147108,0.002,111380.0,111370.0,1.67723752]
[1756846147305,0.002,111380.0,111370.0,1.92723752]
[1756846148307,0.001,111380.0,111370.0,1.92723752]
[1756846148609,0.08190134,111390.0,111370.0,1.92723752]
[1756846148806,0.04857621,111390.0,111380.0,0.38899083]
[1756846149008,0.03379277,111390.0,111380.0,0.69899083]
[1756846149209,0.03611,111410.0,111380.0,1.03326473]
[1756846149410,0.02401,111400.0,111390.0,1.23895083]
[1756846150106,0.04839,111400.0,111390.0,1.59651083]
[1756846150609,0.05797687,111400.0,111390.0,1.59651083]
[1756846151310,0.00958687,111400.0,111390.0,0.72899083]
[1756846151505,0.10686147,111410.0,111400.0,0.0055]
[1756846151705,0.10686147,111410.0,111400.0,0.72899083]
[1756846151706,0.14386869,111410.0,111400.0,0.72899083]
[1756846152113,0.12862406,111410.0,111400.0,0.72899083]
[1756846152503,0.10405406,111410.0,111400.0,1.59647083]
[1756846152709,0.10605406,111410.0,111400.0,1.59647083]
[1756846153108,0.10805406,111410.0,111400.0,1.59647083]
[1756846153809,0.004,111410.0,111400.0,1.59647083]
[1756846154210,0.002,111410.0,111400.0,1.59647083]
[1756846154512,0.001,111410.0,111400.0,1.59647083]
[1756846154713,0.002,111410.0,111400.0,1.59647083]
[1756846154914,0.05058,111410.0,111400.0,1.59639083]
[1756846155505,0.08669,111410.0,111400.0,0.0231]
[1756846155818,0.08669,111410.0,111400.0,1.19046]
[1756846156712,0.08669,111410.0,111400.0,1.19042]
[1756846156909,0.08669,111410.0,111400.0,0.0231]
[1756846157117,0.08669,111410.0,111400.0,1.1023]
[1756846157813,0.08669,111410.0,111400.0,1.23038]
[1756846158713,0.05058,111410.0,111400.0,1.23038]
[1756846159108,0.05058,111410.0,111400.0,0.0231]
[1756846159318,0.45258083,111410.0,111400.0,0.70046]
[1756846159517,0.08669,111410.0,111400.0,0.70046]
[1756846160217,0.08669,111410.0,111400.0,0.40046]
[1756846160513,0.08669,111410.0,111400.0,0.69046]
[1756846163312,0.08669,111410.0,111400.0,0.0231]
[1756846163515,0.08669,111410.0,111400.0,1.23022]
[1756846163718,0.08669,111410.0,111400.0,0.91022]
[1756846163918,0.45258083,111410.0,111400.0,1.27022]
[1756846164218,0.08669,111410.0,111400.0,1.27022]
[1756846165112,0.08669,111410.0,111400.0,1.63611083]
[1756846165420,0.002,111410.0,111400.0,1.63611083]
[1756846170216,0.002,111410.0,111400.0,0.76899083]
[1756846170519,0.03811,111410.0,111400.0,1.63587083]
[1756846170923,0.002,111410.0,111400.0,1.63587083]
[1756846172615,0.05058,111410.0,111400.0,1.63575083]
[1756846175918,0.002,111410.0,111400.0,1.63575083]
[1756846176327,0.002,111410.0,111400.0,1.26986]
[1756846176516,0.002,111410.0,111400.0,1.63575083]
[1756846177632,0.001,111410.0,111400.0,1.63575083]
[1756846178916,0.002,111410.0,111400.0,1.63575083]
[1756846180113,0.42847293,111450.0,111410.0,0.0897539]
[1756846180114,0.03728,111440.0,111410.0,0.0897539]
[1756846180327,0.52145227,111440.0,111430.0,0.0231]
[1756846180626,0.44941354,111440.0,111430.0,0.3831]
[1756846180823,0.44941354,111440.0,111430.0,1.2495]
[1756846181528,0.45141354,111440.0,111430.0,0.3831]
[1756846181724,0.45341354,111440.0,111430.0,1.24946]
[1756846182223,0.45341354,111440.0,111430.0,0.3831]
[1756846182431,0.45341354,111440.0,111430.0,1.24942]
[1756846182728,0.45341354,111440.0,111430.0,0.3831]
[1756846183239,0.45341354,111440.0,111430.0,1.24938]
[1756846183438,0.45241354,111440.0,111430.0,1.24938]
[1756846184033,0.45241354,111440.0,111430.0,0.3831]
[1756846184235,0.45241354,111440.0,111430.0,1.24934]
[1756846184640,0.5225359,111440.0,111430.0,0.3831]
[1756846184945,0.88842673,111440.0,111430.0,0.8893]
[1756846186439,0.85114673,111440.0,111430.0,0.8893]
[1756846186630,0.4606859,111440.0,111430.0,1.23922]
[1756846186833,0.07327103,111440.0,111430.0,1.60511083]
[1756846187037,0.03599103,111440.0,111430.0,1.60511083]
[1756846187235,0.05953576,111440.0,111430.0,1.60511083]
[1756846187443,0.03499103,111440.0,111430.0,1.60511083]
[1756846187941,0.12029085,111440.0,111430.0,0.3731]
[1756846188143,0.11829085,111440.0,111430.0,0.3531]
[1756846188338,0.11829085,111440.0,111430.0,1.2191]
[1756846189537,0.11829085,111440.0,111430.0,1.2291]
[1756846190136,0.11829085,111440.0,111430.0,1.2591]
[1756846190335,0.09375103,111440.0,111430.0,1.2591]
[1756846190643,0.09475103,111440.0,111430.0,1.2591]
[1756846190844,0.09475103,111440.0,111430.0,0.8891]
[1756846191044,0.09475103,111440.0,111430.0,1.2591]
[1756846191344,0.02750304,111440.0,111430.0,1.62499083]
[1756846192039,0.003,111440.0,111430.0,1.62499083]
[1756846192239,0.49831988,111450.0,111430.0,1.62499083]
[1756846192445,0.49831988,111450.0,111440.0,0.0231]
[1756846192446,0.81998871,111450.0,111440.0,0.0231]
[1756846193741,0.81998871,111450.0,111440.0,0.72899083]
[1756846193742,0.36820964,111450.0,111440.0,0.72899083]
[1756846193943,0.33092964,111450.0,111440.0,0.72899083]
[1756846194534,0.33292964,111450.0,111440.0,0.3631]
[1756846194745,0.33292964,111450.0,111440.0,0.6131]
[1756846194934,0.33392964,111450.0,111440.0,0.6131]
[1756846195245,0.08392964,111450.0,111440.0,1.4787]
[1756846195446,0.09671081,111450.0,111440.0,1.4787]
[1756846196444,0.09671081,111450.0,111440.0,0.6131]
[1756846196642,0.09671081,111450.0,111440.0,1.47866]